Cogmind - Beta 9.3 @@@ ROGUE MODE // 2019.12.21 @ 20:24:03 // Winter2019/RPGLIKE Player: Demise Result: Destroyed by as-18721 with Assembled Heavy Rifle Performance ------------- Evolutions (0) 0 Regions Visited (2) 400 Robots Destroyed (27) 135 Value Destroyed (558) 558 Prototype IDs (0) 0 Alien Tech Used (0) 0 Bonus (8) 8 TOTAL SCORE: 1101 Bonus ------- High Alert Combat Kills 8 Cogmind --------- Core Integrity 0/600 Matter 300/300 Energy 111/250 System Corruption 8% Temperature Cool (180) Movement Flying (40) Location -10/Mines Parts ------- > --- POWER (1) -------- Ion Engine > --- PROPULSION (1) --- Flight Unit > --- UTILITY (3) ------ Transport Network Coupler > --- WEAPON (2) ------- EM Pulse Gun Mining Laser > --- INVENTORY (3) ---- Light Armor Plating Grenade Launcher Peak State ------------ > --- POWER ------------ Ion Engine > --- PROPULSION ------- Flight Unit > --- UTILITY ---------- Improved Terrain Scanner Transport Network Coupler Hacking Suite > --- WEAPON ----------- EM Pulse Gun Mining Laser > --- INVENTORY -------- Protomatter Light Armor Plating [Rating: 10] Favorites ----------- Power Ion Engine Engine Ion Engine Propulsion Flight Unit Wheel Compact Wheel Flight Unit Flight Unit Utility Transport Network Coupler Device Improved Terrain Scanner Processor Transport Network Coupler Hackware Hacking Suite Weapon EM Pulse Gun Energy Gun EM Pulse Gun Launcher Grenade Launcher Special Weapon Mining Laser Build | -11 -10 -10 ------- Run | Scr Mat Min Slots Evolved 3 | . 3 . Power . | . . . Propulsion . | . . . Utility 2 | . 2 . Weapon 1 | . 1 . Parts Attached 18 | 5 11 2 Power 1 | 1 . . Engine 1 | 1 . . Core . | . . . Reactor . | . . . Propulsion 2 | 1 1 . Treads . | . . . Leg . | . . . Wheel 1 | 1 . . Hover . | . . . Flight 1 | . 1 . Utility 4 | 2 2 . Device 2 | 2 . . Storage . | . . . Processor 1 | . 1 . Hackware 1 | . 1 . Protection . | . . . Artifact . | . . . Weapon 11 | 1 8 2 Energy Gun 5 | 1 4 . Energy Cannon . | . . . Ballistic Gun . | . . . Ballistic Cannon . | . . . Launcher 1 | . . 1 Special Weapon 5 | . 4 1 Impact Weapon . | . . . Slashing Weapon . | . . . Piercing Weapon . | . . . Special Melee Weapon . | . . . Unidentified Prototypes . | . . . Parts Lost 2 | . 2 . Power . | . . . Propulsion . | . . . Utility 2 | . 2 . Weapon . | . . . Highest Loss Streak 2 | . 2 . Average Slot Usage (%) 94 | . 97 71 Engine 16 | . 17 14 Wheel 5 | . 6 . Flight 11 | . 10 14 Device 14 | . 15 . Processor 14 | . 14 14 Hackware 9 | . 11 . Energy Gun 14 | . 14 14 Special Weapon 5 | . 4 12 Naked Turns . | . . . Heaviest Build 10 | 8 9 10 Greatest Support 16 | 16 16 9 Greatest Overweight (x) 1 | . . 1 Average Overweight (x) . | . . . Largest Inventory Capacity 3 | . 3 3 Average Capacity 1 | . 1 3 Most Carried 3 | . 3 2 Average Carried 1 | . 1 2 Final Capacity 3 | . 3 3 Final Carried 2 | . 2 2 Class Distribution -------------------- 52% | Mutant 47% | Scavenger-Scout Dominant Class ---------------- Scavenger-Scout | -10/Materials Mutant | -10/Mines Resources | -11 -10 -10 ----------- Run | Scr Mat Min Matter Collected 390 | 250 100 40 Remotely . | . . . Salvage Created 541 | 206 269 66 Parts 54 | 20 33 1 Haulers Intercepted 2 | . 2 . Recyclers Shooed . | . . . Parts Field Recycled . | . . . Retrieved Matter . | . . . Parts Self-Destructed . | . . . Prevented . | . . . Kills | -11 -10 -10 ------- Run | Scr Mat Min Combat Hostiles Destroyed 15 | . 13 2 Guns 10 | . 10 . AOE 5 | . 3 2 Classes Destroyed 7 | 3 4 . Worker 2 | 2 . . Tunneler 5 | 5 . . Hauler 2 | . 2 . Recycler 1 | 1 . . Operator 2 | . 2 . Swarmer 6 | . 6 . Grunt 9 | . 7 2 Best Kill Streak 6 | 6 4 2 Combat Bots Only 4 | . 4 2 Max Kills in Single Turn 2 | 1 2 2 Gunslinging . | . . . Exploded 2 | . 2 2 Melee . | . . . Uniques/NPCs Destroyed . | . . . Combat | -11 -10 -10 -------- Run | Scr Mat Min Damage Taken 1197 | . 1004 193 Core 1023 | . 859 164 Absorbed by Shields . | . . . Redirected to Core 622 | . 517 105 Core Remaining (%) 100 | 100 . . Volleys Fired 111 | 38 63 10 Largest 2 | 1 1 2 Hottest 140 | 50 100 140 Shots Fired 118 | 38 63 17 Gun 89 | 38 42 9 Cannon . | . . . Launcher 2 | . . 2 Special 27 | . 21 6 Kinetic . | . . . Thermal 66 | 38 22 6 Explosive 2 | . . 2 Electromagnetic 50 | . 41 9 Robot Hit Streak 7 | 5 6 7 Robot Miss Streak 7 | 5 7 5 Penetration Max . | . . . Secondary Targets . | . . . Shots Hit Robots 58 | 22 30 6 Core Hits 37 | 9 23 5 Critical Hits . | . . . Critical Kills . | . . . Critical Parts Destroyed . | . . . Melee Attacks . | . . . Impact . | . . . Slashing . | . . . Piercing . | . . . Sneak Attacks . | . . . Combat Hostiles . | . . . Follow-up Attacks . | . . . Damage Inflicted 1158 | 277 689 192 Guns 727 | 277 404 46 Cannons . | . . . Explosions 402 | . 280 122 Melee . | . . . Ramming . | . . . Kinetic . | . . . Thermal 598 | 277 297 24 Explosive 122 | . . 122 Electromagnetic 438 | . 392 46 Impact . | . . . Slashing . | . . . Piercing . | . . . Highest Corruption 8 | . 8 8 Average Corruption 8 | . 8 8 Corruption Purged . | . . . Effects 6 | . 3 3 Heat Flow Errors 2 | . 1 1 Energy Discharges 3 | . 2 1 Data Loss (minor) 1 | . . 1 Overload Shots . | . . . Overflow Damage 25 | . 25 . Projectiles . | . . . Explosions 25 | . 25 . Melee . | . . . Knockbacks . | . . . Impact . | . . . Kinetic . | . . . Secondary . | . . . Self-Inflicted Damage 90 | . 90 . Shots 3 | . 3 . Rammed . | . . . Targets Rammed . | . . . Kicked . | . . . Crushed . | . . . Highest Temperature 241 | 170 141 241 Average Temperature 48 | 67 27 77 Received Heat Transfer 114 | . 114 . Siege Activations . | . . . Robots Corrupted . | . . . Combat Hostiles . | . . . Parts Fried 3 | . 3 . Impact Corruptions . | . . . Robots Melted . | . . . Combat Hostiles . | . . . Parts Melted 1 | 1 . . Heat Transferred 1351 | 814 487 50 Parts Sabotaged . | . . . Parts Stolen . | . . . Parts Stripped . | . . . Power Chain Reactions 3 | . 3 . Missiles Intercepted . | . . . Alert | -11 -10 -10 ------- Run | Scr Mat Min Peak Influence 430 | 40 430 224 Average Influence 194 | 17 231 207 Maximum Alert Level 2 | . 2 1 Low Security (%) 51 | 100 43 31 Level 1 36 | . 40 68 Level 2 12 | . 16 . Level 3 . | . . . Level 4 . | . . . Level 5 . | . . . High Security . | . . . Max Security . | . . . Squads Dispatched 5 | . 5 . Investigation 2 | . 2 . Extermination . | . . . Reinforcement 3 | . 3 . Assault . | . . . Garrison . | . . . Intercept . | . . . Construction Impeded . | . . . Haulers Reinforced . | . . . Stealth | -11 -10 -10 --------- Run | Scr Mat Min Distress Signals 2 | . 2 . Communications Jammed . | . . . Distress Signals . | . . . Times Spotted 40 | . 34 6 Peak Tracking Total 8 | . 8 2 Tactical Retreats 5 | . 4 1 Traps | -11 -10 -10 ------- Run | Scr Mat Min Traps Triggered 1 | . 1 . Indirectly . | . . . Trap Hack Attempts . | . . . Triggered . | . . . Disarmed . | . . . Reprogrammed . | . . . Reused . | . . . Traps Extracted . | . . . Installed . | . . . Triggered . | . . . Machines | -11 -10 -10 ---------- Run | Scr Mat Min Machines Disabled 12 | . 11 1 Max in Single Turn 1 | . 1 1 Machines Sabotaged . | . . . Garrisons Compromised . | . . . Overloaded Fab Kills . | . . . Fab Network Shutdowns . | . . . Hacking | -11 -10 -10 --------- Run | Scr Mat Min Machines Accessed 5 | . 5 . Terminals 4 | . 4 . Fabricators . | . . . Repair Stations 1 | . 1 . Recycling Units . | . . . Scanalyzers . | . . . Garrison Access . | . . . Total Hacks 17 | . 17 . Successful 8 | . 8 . Failed 9 | . 9 . Catastrophic 1 | . 1 . Database Lockouts . | . . . Manual 11 | . 11 . Terminals 15 | . 15 . Fabricators . | . . . Repair Stations 2 | . 2 . Recycling Units . | . . . Scanalyzers . | . . . Garrison Access . | . . . Terminal Hacks 2 | . 2 . Branch Access Points 1 | . 1 . Registered Components 1 | . 1 . Fabricator Hacks . | . . . Repair Station Hacks 1 | . 1 . Scan Component 1 | . 1 . Recycling Unit Hacks . | . . . Scanalyzer . | . . . Garrison Access Hacks . | . . . Unauthorized Hacks 10 | . 10 . Terminals 4 | . 4 . Botnet 4 | . 4 . Fabricators . | . . . Repair Stations . | . . . Recycling Units . | . . . Scanalyzers . | . . . Garrison Access . | . . . Data Cores Recovered . | . . . Used . | . . . Hacking Detections 5 | . 5 . Full Trace Events 2 | . 2 . Feedback Events . | . . . Feedback Blocked . | . . . Robot Schematics Acquired . | . . . Robots Built . | . . . Matter . | . . . Time . | . . . Total Robot Build Rating . | . . . Part Schematics Acquired . | . . . Parts Built . | . . . Matter . | . . . Time . | . . . Total Part Build Rating . | . . . Parts Repaired . | . . . Time . | . . . Parts Recycled . | . . . Recycled Matter . | . . . Retrieved Matter . | . . . Retrieved Components . | . . . Parts Scanalyzed . | . . . Part Schematics Acquired . | . . . Parts Damaged . | . . . Bothacking | -11 -10 -10 ------------ Run | Scr Mat Min Used RIF Installer . | . . . Robots Hacked . | . . . Non-combat . | . . . Combat . | . . . Robot Hacks Applied . | . . . Relay Couplers Released . | . . . Robots Rewired . | . . . Allies Hacked . | . . . Hacks Repelled . | . . . Allies | -11 -10 -10 -------- Run | Scr Mat Min Total Allies . | . . . Largest Group . | . . . Highest-Rated Group . | . . . Highest-Rated Ally . | . . . Total Orders . | . . . Ally Attacks . | . . . Total Damage . | . . . Kills . | . . . Allies Corrupted . | . . . Allies Melted . | . . . Intel | -11 -10 -10 ------- Run | Scr Mat Min Robot Analysis Total . | . . . Derelict Logs Recovered . | . . . Drone Launches . | . . . Drone Recoveries . | . . . Exploration | -11 -10 -10 ------------- Run | Scr Mat Min Turns Passed 923 | 147 697 79 Spaces Moved 925 | 66 765 94 Core 3 | 3 . . Treads . | . . . Legs . | . . . Wheels 222 | 63 159 . Hover . | . . . Flight 700 | . 606 94 Fastest Speed 40 | 50 40 40 Average Speed 54 | 97 52 41 Slowest Speed 120 | 100 100 120 Overloaded Moves . | . . . Propulsion Burnouts . | . . . Robots Hopped 2 | . 2 . Cave-ins Triggered 2 | . 2 . Exploration Rate (%) 43 | 4 96 29 Regions Visited 2 Branch Regions 1 Pre-discovered Areas 1 | . . 1 Known Exits Taken 1 | . 1 . Unknown Exits Taken 1 | 1 . . Scrap Searched . | . . . Spaces Dug 4 | . 4 . Terrain Destroyed 30 | . 11 19 Melee . | . . . Projectile 6 | . 4 2 AOE 24 | . 7 17 Actions | -11 -10 -10 --------- Run | Scr Mat Min Total 1183 | 109 966 108 Wait 86 | . 84 2 Move 919 | 65 760 94 Hop 2 | . 2 . Pick Up 8 | . 8 . Fast Attach 9 | 4 5 . Attach 1 | . 1 . Detach . | . . . Swap 8 | 1 5 2 Drop 10 | 1 9 . Fire 111 | 38 63 10 Melee . | . . . Ram . | . . . Kick . | . . . Crush . | . . . Escape Stasis . | . . . Rewire . | . . . Trap . | . . . Miscellaneous 29 | . 29 . Route ------- -11/Scrapyard -10/Materials (discovered 5 exits: [*Mat x3] / *Min x2) -10/Mines History --------- Turn | Location | Event 2 | -11/Scrapyard | Met Revision 17 20 | -11/Scrapyard | Discovered new exit (range 15) 148 | -11/Scrapyard | Entered Materials 214 | -10/Materials | Upgraded with Utility slot (x1) 249 | -10/Materials | Discovered new exit (range 8) 298 | -10/Materials | Upgraded with Utility slot (x1) 320 | -10/Materials | Build established: Mutant 496 | -10/Materials | Discovered new exit (range 14) 526 | -10/Materials | Discovered new exit (range 8) 586 | -10/Materials | Reached level 2 676 | -10/Materials | Build established: Scavenger-Scout 742 | -10/Materials | Discovered new exit (range 12) 743 | -10/Materials | Identified exit to Mines 756 | -10/Materials | Upgraded with Weapon slot (x1) 778 | -10/Materials | Crushed by falling debris 787 | -10/Materials | Crushed by falling debris 787 | -10/Materials | Core integrity fell below 50% 787 | -10/Materials | Core integrity fell below 20% 809 | -10/Materials | Discovered new exit (range 8) 845 | -10/Materials | Entered Mines 846 | -10/Mines | Assembled infested the area 870 | -10/Mines | Reached level 3 898 | -10/Mines | Learned location of Storage (-7) 924 | -10/Mines | Destroyed by as-18721 with Assembled Heavy Rifle Last Messages --------------- 00849_ Laser Drill disabled. 00870_ Reached level 3. 00870_ G-34 Mercenary destroyed. 00870_ G-47 Trooper destroyed. 00872_ The unstable cave ceiling collapses. 00877_ Acquired 26 matter. 00878_ Acquired 14 matter. 00881_ System corrupted: Heat flow error (+257). 00882_ as-56513 destroyed. 00897_ System corrupted: Energy discharge (-67). 00898_ A derelict emerges from the shadows: "Are any of them following you? I'm here trying to lose some heat after our second raid on Storage failed. Whatever you do stay away from that place, they've tightened security following our previous successful raids." World map updated: -7/Storage. 00900_ SH-H99(g): "We scattered so the Unaware couldn't effectively use their advantage in numbers, and I suggest you do the same." 00900_ SH-H99(g) slips back into the shadows. 00912_ System corrupted: Component data lost. 00921_ R-06 Scavenger collects Com. Wheel. Map ----- +----------------------------------------------------+ | ??????????????????????????????????????????????? | | ??????????????????????????????????????????????? | | ??????????????????????????????????????????????? | | ??????????????????????????????????????????????? | | ??????????????????????????????????????????????? | | ??????????????????????????????????????????????? | | ??????????????????????????????????????????????? | | ??????????????????????????????????????????????? | | ??????????????????????????????????????????????? | | ??????????????????????????????????????????????? | | ??????????????????????????????????????????????? | | ??????????????????????????????????????????????? | | ??????????????????????????????????????????????? | | ??????????????????????????????????????????????? | | ??????????????????????????????????????????????? | | ??????????????????????????????????????????????? | | ??????????????????????????????????????????????? | | ?????????????????????###??????????????????????? | | ????????????????????? #??????????????????????? | | ?????????????????????# #??????????????????????? | | ?????????????????????# #??????????????????????? | | ?????????????????????# #??????????????????????? | | ????????????????????## #?????????????????####?? | | ??????????????# ####; ###### #??????##### ##? | | ?????????????# !r !a|%= #????### ## | | ?????????????# ####@;#######???## # | | ?????????????????????# ############ | | ?????????????????????# | | ?????????????????????############### ## | | ???????????????????????????????????###### | | ????????????????????????????????????????## | | ????????????????????????????????????????## | | ???????????????????????????????????###### | | ???????????????????????????????????# | | ??????????????????????????????????# ## | | ??????????????????????????????????## ##? | | ???????????????????????????????????## ## ##?? | | ????????????????????????????????????###?####??? | | ??????????????????????????????????????????????? | | ??????????????????????????????????????????????? | | ??????????????????????????????????????????????? | | ??????????????????????????????????????????????? | | ??????????????????????????????????????????????? | | ??????????????????????????????????????????????? | | | | | | | | | | | | | +----------------------------------------------------+ Best States ------------- Heat Dissipation 25 Energy Generation 10 Energy Capacity 250 Matter Stores 300 Matter Capacity 300 Sight Range 16 Terrain Scan Range 16 Terrain Scan Density 210 Evasion (%) 62 Offensive Hacking 10 Item Schematics ----------------- None Robot Schematics ------------------ None Fabricated ------------ Nothing Alien Tech Used ----------------- None Achievements -------------- None Challenges ------------ None RPGLIKE | -11 -10 -10 --------- Run | Scr Mat Min Levels Raised 2 | . 1 1 XP Earned 6174 | 3000 2349 825 XP Spent 3920 | . 3920 . Upgrades 10 | . 10 . Utility Slot 2 | . 2 . Weapon Slot 1 | . 1 . Mass Support 1 | . 1 . Inventory Capacity 3 | . 3 . Terrain Scan Density 2 | . 2 . Ranged Accuracy 1 | . 1 . Protomatter Created 245 | . 245 . Integrity Restored 488 | . 488 . Core 421 | . 421 . Parts 67 | . 67 . Protomatter Decayed 76 | . 76 . Game ------ Seed ShrapnelNuclearMagmablaster Manual? 0 Play Time 00:16:08 Cumulative 144.7 hours Start 2019.12.21 @ 20:09:06 End 2019.12.21 @ 20:24:03 Sessions 1 Manual Loads 0 Difficulty Rogue Special Mode Winter2019/RPGLIKE Game No. 196 Rogue 185 Adventurer 11 Explorer 0 Win Type - Total 0 Types 0/0/0/0/0/0/0 Lore% 47 Gallery% 59 Achievement% 41 Wizard Run 0 Options --------- ASCII 0 Keyboard 1 Movement Numpad Keybinds 0 Fullscreen 1 Font 12/Terminus Map View 83x54 Tactical HUD 1 Map Filters NONE Filters NONE Steam 1 RUN: 9dace9ce-9c9b-449b-a8e2-9384167f4fa7